fUST/lending_fUST_20250722
["ID","MTS","AMOUNT","RATE_DAILY","PERIOD"]
[373799662,1753116644134,-460.0,0.00022701,2]
[373799664,1753116644144,-460.0,0.00022701,2]
[373799666,1753116644154,-460.0,0.00022701,2]
[373799668,1753116644164,-460.0,0.00022701,2]
[373799671,1753116644173,-460.0,0.00022703,2]
[373799673,1753116644188,-500.0,0.00022704,2]
[373799675,1753116644197,-514.08,0.00022715,2]
[373799677,1753116644207,-500.0,0.00022728,2]
[373799679,1753116644218,-1000.0,0.00022748,2]
[373799681,1753116644228,-151.0,0.000228,7]
[373799682,1753116644238,-151.0,0.00022815,7]
[373799684,1753116644248,-151.0,0.00022815,7]
[373799686,1753116644258,-151.0,0.00022815,7]
[373799688,1753116644267,-151.0,0.00022815,7]
[373799691,1753116644278,-151.0,0.00022815,7]
[373799693,1753116644287,-151.0,0.00022815,7]
[373799694,1753116644296,-151.0,0.00022815,7]
[373799696,1753116644305,-514.08,0.00022815,4]
[373799698,1753116644315,-160.0,0.00022828,3]
[373799700,1753116644326,-1000.0,0.00022885,2]
[373799702,1753116644336,-500.0,0.00022885,2]
[373799704,1753116644346,-574.0,0.00022889,2]
[373799706,1753116644355,-514.08,0.00022915,4]
[373799708,1753116644366,-151.2,0.00022937,6]
[373799710,1753116644375,-460.0,0.00022975,2]
[373799712,1753116644385,-151.0,0.00022975,7]
[373799714,1753116644394,-460.0,0.00022975,2]
[373799716,1753116644404,-460.0,0.00022975,2]
[373799718,1753116644413,-460.0,0.00022975,2]
[373799720,1753116644423,-460.0,0.00022977,2]
[373799722,1753116644435,-500.0,0.00022978,2]
[373799724,1753116644445,-160.0,0.00023,2]
[373799726,1753116644454,-231.02460978,0.00023,3]
[373799728,1753116644463,-160.0,0.00023,3]
[373799730,1753116644472,-215.75719967,0.00023,3]
[373799732,1753116644482,-160.0,0.00023,3]
[373799734,1753116644491,-839.74694734,0.00023,3]
[373799736,1753116644500,-514.08,0.00023015,6]
[373799738,1753116644510,-150.552042,0.00023099,2]
[373799740,1753116644519,-514.08532,0.00023115,6]
[373799742,1753116644529,-151.0,0.000232,6]
[373799744,1753116644538,-1718.38,0.000232,7]
[373799746,1753116644547,-9003.4,0.000232,7]
[373799748,1753116644556,-574.0,0.00023224,2]
[373799750,1753116644566,-460.0,0.00023249,2]
[373799752,1753116644575,-460.0,0.00023249,2]
[373799754,1753116644584,-460.0,0.00023249,2]
[373799756,1753116644594,-460.0,0.00023249,2]
[373799758,1753116644603,-460.0,0.00023251,2]
[373799760,1753116644613,-500.0,0.00023252,2]
[373799762,1753116644623,-682.08849996,0.00023296,2]
[373799764,1753116644632,-151.2,0.00023421,6]
[373799766,1753116644642,-957.13281255,0.00023423,2]
[373799768,1753116644650,-150.552042,0.0002345,3]
[373799770,1753116644660,-574.0,0.00023511,2]
[373799772,1753116644670,-460.0,0.00023523,2]
[373799774,1753116644680,-460.0,0.00023523,2]
[373799776,1753116644692,-460.0,0.00023523,2]
[373799778,1753116644702,-460.0,0.00023523,2]
[373799780,1753116644711,-460.0,0.00023525,2]
[373799782,1753116644721,-500.0,0.00023526,2]
[373799784,1753116644730,-574.0,0.00023544,2]
[373799786,1753116644740,-168.0,0.00023569,2]
[373799788,1753116644749,-223.0315306,0.00023586,2]
[373799790,1753116644758,-151.0,0.000236,10]
[373799792,1753116644767,-151.0,0.00023679,7]
[373799794,1753116644777,-648.0,0.00023679,2]
[373799796,1753116644786,-2156.0,0.00023679,2]
[373799798,1753116644795,-968.0,0.00023679,2]
[373799800,1753116644804,-1053.18,0.000237,7]
[373799802,1753116644813,-500.0,0.00023755,2]
[373799803,1753116644822,-574.0,0.00023793,2]
[373799805,1753116644832,-460.0,0.00023797,2]
[373799807,1753116644842,-460.0,0.00023797,2]
[373799809,1753116644851,-460.0,0.00023797,2]
[373799811,1753116644861,-460.0,0.00023797,2]
[373799813,1753116644870,-460.0,0.00023799,2]
[373799815,1753116644880,-500.0,0.000238,2]
[373799817,1753116644889,-158.0154935,0.00023817,2]
[373799819,1753116644899,-168.0,0.00023854,2]
[373799821,1753116644908,-168.0,0.0002388,2]
[373799823,1753116644918,-957.13281251,0.00023882,2]
[373799825,1753116644928,-151.2,0.00023906,6]
[373799827,1753116644939,-150.0,0.00023955,2]
[373799829,1753116644949,-660.96114,0.00023984,2]
[373799831,1753116644958,-67902.28630686,0.0002399,2]
[373799833,1753116644969,-151.0,0.00024,6]
[373799835,1753116644980,-231.02460978,0.00024,7]
[373799837,1753116644990,-160.0,0.00024,7]
[373799839,1753116645000,-215.75719967,0.00024,7]
[373799841,1753116645010,-160.0,0.00024,7]
[373799843,1753116645019,-839.74694734,0.00024,7]
[373799845,1753116645029,-168.0,0.00024026,2]
[373799847,1753116645038,-500.0,0.00024027,30]
[373799849,1753116645051,-460.0,0.00024071,2]
[373799851,1753116645060,-488.25,0.00024071,2]
[373799853,1753116645069,-460.0,0.00024071,2]
[373799855,1753116645079,-460.0,0.00024071,2]
[373799857,1753116645089,-246.96736584,0.00024073,2]
[373799859,1753116645099,-500.0,0.00024074,2]
[373799861,1753116645108,-660.96114,0.00024084,2]
[373799863,1753116645118,-151.0,0.00024113,7]
[373799865,1753116645128,-861.0,0.0002418,2]
[373799867,1753116645137,-168.0,0.00024201,2]
[373799869,1753116645147,-957.13281251,0.00024341,2]
[373799871,1753116645156,-460.0,0.00024345,2]
[373799873,1753116645166,-460.0,0.00024345,2]
[373799875,1753116645175,-344.23578928,0.00024345,2]
[373799876,1753116645185,-226.34582576,0.00024347,2]
[373799878,1753116645194,-151.2,0.0002439,7]
[373799880,1753116645204,-151.0,0.000244,5]
[373799882,1753116645213,-1718.38,0.000244,7]
[373799884,1753116645223,-3904.05037664,0.000244,2]
[373799886,1753116645232,-9003.4,0.000244,7]
[373799888,1753116645241,-184.871323,0.000244,7]
[373799890,1753116645251,-334.108329,0.00024401,8]
[373799892,1753116645261,-150.552042,0.0002443,8]
[373799894,1753116645271,-177.366335,0.00024451,7]
[373799896,1753116645280,-283.8464263,0.00024451,2]
[373799898,1753116645290,-8075.7820156,0.000245,4]
[373799900,1753116645299,-151.0,0.000245,7]
[373799902,1753116645309,-151.0,0.000245,7]
[373799904,1753116645318,-168.0,0.00024514,2]
[373799906,1753116645328,-150.552042,0.00024518,2]
[373799908,1753116645338,-151.0,0.00024525,7]
[373799910,1753116645347,-159.0,0.00024548,13]
[373799912,1753116645356,-151.0,0.000246,7]
[373799914,1753116645366,-151.0,0.000246,7]
[373799915,1753116645376,-151.0,0.000246,7]
[373799916,1753116645385,-198.053606,0.000246,7]
[373799917,1753116645394,-198.053606,0.000246,7]
[373799918,1753116645404,-151.0,0.000246,7]
[373799919,1753116645413,-841.0,0.000246,2]
[373799920,1753116645422,-344.52439063,0.00024602,31]
[373799921,1753116645431,-800.0,0.00024605,2]
[373799923,1753116645442,-460.0,0.00024619,2]
[373799925,1753116645451,-460.0,0.00024619,2]
[373799927,1753116645461,-429.5320659,0.00024642,2]
[373799929,1753116645470,-429.5320659,0.00024642,2]
[373799931,1753116645479,-429.5320659,0.00024642,2]
[373799933,1753116645488,-428.3686387,0.00024642,2]
[373799935,1753116645498,-200.0,0.00024658,15]
[373799937,1753116645507,-473.0,0.00024658,2]
[373799939,1753116645516,-861.0,0.00024661,2]
[373799941,1753116645526,-150.552042,0.00024675,3]
[373799943,1753116645535,-861.0,0.00024692,2]
[373799945,1753116645544,-206.0,0.0002473,2]
[373799947,1753116645554,-200.0,0.0002474,11]
[373799949,1753116645563,-861.0,0.00024743,2]
[373799951,1753116645573,-151.0,0.00024743,7]
[373799953,1753116645582,-184.197686,0.00024743,7]
[373799955,1753116645591,-150.552042,0.00024743,4]
[373799968,1753116645695,-151.0,0.00024743,7]
[373799971,1753116645705,-979.66,0.000248,2]
[373799973,1753116645716,-1053.18,0.000248,7]
[373799975,1753116645725,-151.0,0.000248,7]
[373799977,1753116645735,-151.0,0.000248,7]
[373799979,1753116645745,-151.0,0.000248,7]
[373799981,1753116645755,-1000.0,0.000248,2]
[373799983,1753116645764,-151.0,0.000248,7]
[373799985,1753116645775,-957.13281251,0.000248,2]
[373799987,1753116645785,-3904.05037664,0.0002483,2]
[373799989,1753116645794,-150.552042,0.0002486,8]
[373799991,1753116645804,-500.0,0.00024873,2]
[373799993,1753116645814,-151.2,0.00024875,7]
[373799995,1753116645824,-460.0,0.00024893,2]
[373799997,1753116645833,-520.32,0.00024893,2]
[373799999,1753116645843,-1000.0,0.00024899,7]
[373800001,1753116645853,-1000.0,0.00024899,13]
[373800003,1753116645863,-1000.0,0.00024899,20]
[373800005,1753116645872,-20795.43573995,0.000249,5]
[373800008,1753116645882,-151.0,0.000249,7]
[373800010,1753116645892,-151.0,0.000249,7]
[373800012,1753116645901,-151.0,0.000249,7]
[373800014,1753116645911,-151.0,0.000249,7]
[373800016,1753116645920,-151.633874,0.000249,7]
[373800019,1753116645930,-151.0,0.000249,7]
[373800021,1753116645944,-151.0,0.000249,7]
[373800023,1753116645953,-151.0,0.000249,7]
[373800025,1753116645963,-151.0,0.000249,7]
[373800027,1753116645973,-151.0,0.000249,7]
[373800029,1753116645983,-151.0,0.000249,7]
[373800031,1753116645993,-151.0,0.000249,7]
[373800033,1753116646003,-190.14124,0.000249,7]
[373800035,1753116646013,-151.0,0.000249,7]
[373800037,1753116646022,-151.0,0.000249,7]
[373800039,1753116646036,-194.281434,0.000249,7]
[373800041,1753116646049,-151.0,0.000249,7]
[373800043,1753116646058,-151.0,0.000249,7]
[373800045,1753116646068,-151.0,0.000249,7]
[373800047,1753116646077,-151.0,0.000249,7]
[373800049,1753116646087,-151.0,0.000249,7]
[373800051,1753116646097,-256.967306,0.000249,7]
[373800053,1753116646107,-151.0,0.000249,7]
[373800055,1753116646116,-198.053606,0.000249,7]
[373800057,1753116646127,-198.053606,0.000249,7]
[373800059,1753116646137,-198.053606,0.000249,7]
[373800061,1753116646150,-198.053606,0.000249,7]
[373800063,1753116646160,-151.0,0.000249,7]
[373800065,1753116646171,-151.0,0.000249,7]
[373800067,1753116646191,-151.0,0.000249,7]
[373800069,1753116646201,-477240.63910315,0.000249,2]
[373800078,1753116646277,-4878.55938385,0.000249,2]
[373800080,1753116646287,-151.0,0.000249,7]
[373800082,1753116646296,-153.56,0.000249,31]
[373800085,1753116646306,-153.56,0.000249,31]
[373800087,1753116646316,-153.56,0.000249,31]
[373800089,1753116646325,-153.56,0.000249,31]
[373800091,1753116646335,-164.153944,0.00024907,2]
[373800093,1753116646344,-168.0,0.0002491,2]
[373800095,1753116646353,-473.0,0.00024932,2]
[373800097,1753116646363,-254.28079363,0.00024949,2]
[373800099,1753116646373,-231.28369723,0.00024955,2]
[373800101,1753116646382,-151.0,0.0002499,7]
[373800103,1753116646391,-151.0,0.0002499,7]
[373800106,1753116646401,-151.0,0.0002499,7]
[373800109,1753116646411,-151.0,0.0002499,7]
[373800111,1753116646421,-198.053606,0.0002499,7]
[373800113,1753116646430,-198.053606,0.0002499,7]
[373800115,1753116646440,-236.228358,0.0002499,7]
[373800117,1753116646449,-151.0,0.0002499,7]
[373800119,1753116646459,-1426.02999467,0.00025,30]
[373800122,1753116646470,-504.32018305,0.00025,30]
[373800124,1753116646481,-473.44009754,0.00025,30]
[373800127,1753116646501,-7126.78134552,0.00025,30]
[373800131,1753116646531,-460.0,0.00018865,2]
[373800133,1753116646540,-460.0,0.00019139,2]
[373800135,1753116646549,-370.96,0.00019413,2]
[373800137,1753116646559,-3198.75449379,0.00025,30]
[373800139,1753116646570,-1190.36478622,0.00025,30]
[373800141,1753116646582,-10399.86101999,0.00025,30]
[373800143,1753116646591,-26511.08,0.00025,2]
[373800145,1753116646600,-151.0,0.00025,7]
[373800147,1753116646609,-151.0,0.00025,7]
[373800149,1753116646619,-151.0,0.00025,7]
[373800151,1753116646629,-198.053606,0.00025,7]
[373800153,1753116646638,-198.053606,0.00025,7]
[373800155,1753116646648,-151.0,0.00025,7]
[373800157,1753116646657,-160.0,0.00025,30]
[373800159,1753116646667,-215.75719967,0.00025,30]
[373800161,1753116646677,-151.0,0.00025,7]
[373800163,1753116646689,-525.99222921,0.00025,30]
[373800165,1753116646699,-206.0,0.0002506,2]
[373800167,1753116646708,-2200.0,0.00025079,2]
[373800169,1753116646718,-500.0,0.00025079,2]
[373800171,1753116646727,-300.66476969,0.00025167,2]
[373800173,1753116646737,-198.053606,0.0002519,7]
[373800175,1753116646747,-198.053606,0.0002519,7]
[373800177,1753116646757,-151.0,0.000252,15]
[373800179,1753116646767,-3116.48,0.00025205,4]
[373800181,1753116646777,-473.0,0.00025206,2]
[373800183,1753116646786,-151.0,0.00025225,7]
[373800185,1753116646796,-151.0,0.00025254,7]
[373800187,1753116646805,-150.552042,0.00025256,30]
[373800189,1753116646813,-151.0,0.00025256,7]
[373800191,1753116646822,-957.13281251,0.00025259,2]
[373800193,1753116646831,-3904.05037664,0.00025259,2]
[373800195,1753116646840,-1633.315907,0.0002526,5]
[373800197,1753116646850,-1000.0,0.0002528,5]
[373800199,1753116646860,-1129.113285,0.0002528,5]
[373800201,1753116646870,-163.957558,0.0002529,7]
[373800203,1753116646880,-151.0,0.0002529,7]
[373800205,1753116646889,-151.0,0.0002529,7]
[373800207,1753116646899,-150.552042,0.00025291,4]
[373800209,1753116646909,-262.98575895,0.00025297,2]
[373800211,1753116646919,-2000.0,0.000253,2]
[373800213,1753116646928,-15000.0,0.000253,4]
[373800215,1753116646941,-151.0,0.000253,11]
[373800217,1753116646951,-151.0,0.000253,16]
[373800219,1753116646961,-151.0,0.000253,7]
[373800221,1753116646970,-1000.0,0.000253,5]
[373800223,1753116646979,-1000.0,0.000253,5]
[373800225,1753116646990,-153.56,0.000253,31]
[373800227,1753116647001,-153.56,0.000253,31]
[373800229,1753116647010,-153.56,0.000253,31]
[373800231,1753116647019,-153.56,0.000253,31]
[373800233,1753116647029,-153.56,0.000253,31]
[373800235,1753116647039,-153.56,0.000253,31]
[373800238,1753116647052,-150.552042,0.00025302,10]
[373800240,1753116647062,-151.0,0.00025306,7]
[373800242,1753116647072,-151.0,0.00025316,7]
[373800243,1753116647081,-151.0,0.00025316,7]
[373800245,1753116647092,-151.0,0.00025316,7]
[373800247,1753116647101,-200.0,0.00025326,2]
[373800249,1753116647111,-330438.1477131,0.00025326,5]
[373800251,1753116647121,-206.513461,0.00025326,7]
[373800254,1753116647131,-151.0,0.00025326,7]
[373800256,1753116647141,-151.0,0.00025326,7]
[373800257,1753116647150,-151.0,0.00025326,7]
[373800260,1753116647169,-198.053606,0.00025326,7]
[373800263,1753116647181,-198.053606,0.00025326,7]
[373800265,1753116647195,-275.501756,0.00025326,7]
[373800267,1753116647205,-245.129872,0.00025326,7]
[373800269,1753116647216,-150.552042,0.00025341,30]
[373800271,1753116647226,-160.0,0.0002535,4]
[373800273,1753116647236,-160.0,0.0002535,5]
[373800275,1753116647246,-150.552042,0.00025352,20]
[373800277,1753116647256,-200.0,0.00025355,30]
[373800279,1753116647266,-200.0,0.00025355,30]
[373800281,1753116647276,-150.552042,0.00025355,20]
[373800283,1753116647285,-151.0,0.00025356,7]
[373800285,1753116647295,-151.0,0.00025356,7]
[373800287,1753116647305,-151.0,0.00025356,7]
[373800289,1753116647315,-151.0,0.00025356,7]
[373800291,1753116647325,-151.0,0.00025356,7]
[373800294,1753116647334,-198.053606,0.00025356,7]
[373800295,1753116647344,-198.053606,0.00025356,7]
[373800298,1753116647353,-198.053606,0.00025356,7]
[373800300,1753116647363,-198.053597,0.00025356,7]
[373800302,1753116647373,-804349.91959804,0.00025359,20]
[373800304,1753116647387,-89702.2199068,0.00025359,20]
[373800306,1753116647399,-48678.21384757,0.00025359,20]
[373800353,1753116647833,-540.60736584,0.00025359,20]
[373802675,1753116839580,159.385502,0.00027397,120]
[373802676,1753116903447,150.0,0.00013166,2]
[373802677,1753116903872,119.3667941,0.00014363,2]
[373802678,1753116903900,30.6332059,0.00014363,2]
[373802679,1753116904278,150.0,0.0001556,2]
[373802680,1753116907080,-150.0,0.00016757,2]
[373802681,1753116970009,150.0,0.00012794,2]
[373802698,1753117457858,235.77,0.00027397,120]
[373802700,1753117475386,235.7,0.00024658,60]
[373802702,1753117503152,4814.06774876,0.000176,6]
[373802703,1753117534103,-166.09017294,0.00018299,2]
[373802704,1753117534125,-300.0,0.00018863,2]
[373802705,1753117534148,-460.0,0.00018864,2]
[373802706,1753117534171,-460.0,0.00018864,2]
[373802707,1753117534191,-460.0,0.00018864,2]
[373802708,1753117534212,-503.84671985,0.00018864,2]
[373802709,1753117534234,-460.0,0.00018864,2]
[373802710,1753117534257,-580.08,0.00018864,2]
[373802711,1753117534278,-500.0,0.00018864,2]
[373802712,1753117534309,-270.09085149,0.00018865,2]
[373802713,1753117654099,-460.0,0.00018864,2]
[373802714,1753117654123,-300.0,0.00018864,2]
[373802715,1753117654145,-460.0,0.00018865,2]
[373802716,1753117654169,-460.0,0.00018865,2]
[373802717,1753117654191,-10.46253122,0.00018865,2]
[373802718,1753117764125,-2739.0990195,0.00018676,2]
[373802719,1753117764146,-223.0,0.00018864,2]
[373802720,1753117764167,-489.53746878,0.00018865,2]
[373802721,1753117764187,-303.19431172,0.00018865,2]
[373802722,1753117814111,164.153944,0.00013699,2]
[373802838,1753117838766,-163.50568828,0.00018865,2]
[373802840,1753117838775,-298.72850553,0.00018865,2]
[373802842,1753117838789,-161.27149447,0.00018865,2]
[373802844,1753117838798,-460.0,0.00018865,2]
[373802846,1753117838808,-460.0,0.00018866,2]
[373802848,1753117838817,-460.0,0.00018866,2]
[373802850,1753117838827,-175.3238393,0.000189,2]
[373802852,1753117838836,-165.0,0.00019096,3]
[373802854,1753117838846,-223.0,0.00019137,2]
[373802856,1753117838855,-460.0,0.00019138,2]
[373802858,1753117838864,-460.0,0.00019138,2]
[373802860,1753117838874,-460.0,0.00019138,2]
[373802862,1753117838884,-608.88437563,0.00019138,2]
[373802864,1753117838893,-230.69504017,0.00019139,2]
[373802866,1753117838902,-460.0,0.00019139,2]
[373802869,1753117838912,-166.25,0.00019139,2]
[373802871,1753117838923,-460.0,0.0001914,2]
[373802873,1753117838937,-460.0,0.0001914,2]
[373802875,1753117838946,-184.897418,0.00019178,2]
[373802877,1753117838955,-666.0,0.00019178,2]
[373802879,1753117838964,-460.0,0.00019411,2]
[373802881,1753117838975,-460.0,0.00019411,2]
[373802883,1753117838984,-460.0,0.00019411,2]
[373802885,1753117838994,-561.5,0.00019411,2]
[373802887,1753117839003,-460.0,0.00019411,2]
[373802889,1753117839012,-460.0,0.00019411,2]
[373802891,1753117839022,-460.0,0.00019412,2]
[373802894,1753117839032,-251.04,0.00019412,2]
[373802896,1753117839041,-460.0,0.00019412,2]
[373802898,1753117839051,-460.0,0.00019412,2]
[373802900,1753117839063,-460.0,0.00019412,2]
[373802902,1753117839073,-460.0,0.00019412,2]
[373802904,1753117839082,-460.0,0.00019412,2]
[373802906,1753117839091,-460.0,0.00019412,2]
[373802908,1753117839101,-460.0,0.00019413,2]
[373802910,1753117839110,-460.0,0.00019414,2]
[373802912,1753117839119,-460.0,0.00019414,2]
[373802914,1753117839128,-460.0,0.00019414,2]
[373802916,1753117839138,-460.0,0.00019414,2]
[373802918,1753117839147,-460.0,0.00019414,2]
[373802920,1753117839157,-460.0,0.00019414,2]
[373802922,1753117839166,-460.0,0.00019414,2]
[373802924,1753117839175,-460.0,0.00019414,2]
[373802926,1753117839184,-460.0,0.00019415,2]
[373802928,1753117839194,-598.11027876,0.00019415,2]
[373802930,1753117839203,-460.0,0.00019415,2]
[373802932,1753117839213,-180.41687344,0.00019538,2]
[373802934,1753117839222,-460.0,0.0001959,2]
[373802936,1753117839232,-460.0,0.00019685,2]
[373802938,1753117839241,-460.0,0.00019685,2]
[373802941,1753117839251,-460.0,0.00019685,2]
[373802943,1753117839261,-460.0,0.00019686,2]
[373802945,1753117839271,-460.0,0.00019686,2]
[373802947,1753117839280,-460.0,0.00019686,2]
[373802949,1753117839291,-460.0,0.00019686,2]
[373802951,1753117839301,-460.0,0.00019686,2]
[373802952,1753117839311,-460.0,0.00019686,2]
[373802955,1753117839321,-460.0,0.00019687,2]
[373802957,1753117839331,-460.0,0.00019688,2]
[373802959,1753117839341,-501.53,0.00019688,2]
[373802961,1753117839350,-460.0,0.00019688,2]
[373802963,1753117839359,-410.62,0.00019689,2]
[373802965,1753117839369,-460.0,0.00019689,2]
[373802966,1753117839381,-500.0,0.000197,2]
[373802968,1753117839390,-500.0,0.000197,2]
[373802970,1753117839400,-160.0,0.00019703,2]
[373802972,1753117839410,-160.0,0.00019703,2]
[373802974,1753117839421,-160.0,0.00019703,2]
[373802976,1753117839429,-214.60209147,0.00019703,2]
[373802978,1753117839439,-231.02460978,0.00019703,2]
[373802980,1753117839450,-215.75719967,0.00019703,2]
[373802982,1753117839460,-839.74694734,0.00019703,2]
[373802985,1753117839470,-160.0,0.00019703,2]
[373802987,1753117839480,-160.0,0.00019703,2]
[373802989,1753117839488,-160.0,0.00019703,2]
[373802991,1753117839498,-12617.54915256,0.00019704,2]
[373802993,1753117839508,-500.0,0.0001975,2]
[373802995,1753117839517,-363.43,0.00019864,2]
[373802997,1753117839526,-460.0,0.00019959,2]
[373802999,1753117839538,-460.0,0.00019959,2]
[373803001,1753117839547,-460.0,0.0001996,2]
[373803003,1753117839557,-350.49,0.0001996,2]
[373803005,1753117839566,-222.89,0.0001996,2]
[373803007,1753117839575,-460.0,0.0001996,2]
[373803009,1753117839584,-460.0,0.0001996,2]
[373803011,1753117839593,-460.0,0.0001996,2]
[373803013,1753117839602,-460.0,0.00019961,2]
[373803015,1753117839612,-460.0,0.00019962,2]
[373803017,1753117839621,-460.0,0.00019962,2]
[373803019,1753117839630,-460.0,0.00019963,2]
[373803021,1753117839639,-460.0,0.00020233,2]
[373803023,1753117839649,-460.0,0.00020233,2]
[373803025,1753117839658,-460.0,0.00020234,2]
[373803027,1753117839668,-460.0,0.00020234,2]
[373803029,1753117839677,-460.0,0.00020234,2]
[373803031,1753117839686,-460.0,0.00020235,2]
[373803033,1753117839696,-220.7,0.00020236,2]
[373803035,1753117839705,-460.0,0.00020236,2]
[373803037,1753117839714,-460.0,0.00020237,2]
[373803039,1753117839723,-500.0,0.00020248,2]
[373803041,1753117839732,-500.0,0.00020248,2]
[373803043,1753117839742,-160.0,0.00020263,2]
[373803045,1753117839751,-215.0738,0.00020298,2]
[373803047,1753117839760,-151.0,0.00020298,2]
[373803049,1753117839769,-151.0,0.00020298,2]
[373803051,1753117839778,-151.0,0.00020298,2]
[373803053,1753117839790,-151.0,0.00020298,2]
[373803055,1753117839799,-151.0,0.00020298,2]
[373803057,1753117839808,-151.0,0.00020298,2]
[373803059,1753117839818,-151.0,0.00020298,2]
[373803061,1753117839827,-151.0,0.00020298,2]
[373803063,1753117839836,-151.0,0.00020298,2]
[373803065,1753117839845,-151.0,0.00020298,2]
[373803067,1753117839854,-151.0,0.00020298,2]
[373803069,1753117839863,-151.0,0.00020298,2]
[373803071,1753117839876,-151.0,0.00020298,2]
[373803073,1753117839891,-151.0,0.00020298,2]
[373803075,1753117839910,-151.0,0.00020298,2]
[373803077,1753117839926,-151.0,0.00020298,2]
[373803079,1753117839935,-151.0,0.00020298,2]
[373803081,1753117839945,-151.0,0.00020298,2]
[373803083,1753117839954,-460.0,0.00020507,2]
[373803085,1753117839963,-306.62578928,0.00020507,2]
[373803087,1753117839973,-460.0,0.00020508,2]
[373803089,1753117839982,-460.0,0.00020508,2]
[373803091,1753117839991,-460.0,0.00020508,2]
[373803093,1753117840000,-460.0,0.00020509,2]
[373803095,1753117840010,-460.0,0.00020511,2]
[373803097,1753117840019,-10224.16199096,0.00020728,3]
[373803099,1753117840028,-160.0,0.00020728,3]
[373803101,1753117840039,-177.35,0.00020781,2]
[373803103,1753117840048,-460.0,0.00020782,2]
[373803105,1753117840058,-460.0,0.00020782,2]
[373803107,1753117840069,-460.0,0.00020782,2]
[373803109,1753117840079,-163.24736584,0.00020783,2]
[373803111,1753117840088,-151.0,0.00020785,2]
[373803113,1753117840098,-495.04,0.00020785,2]
[373803116,1753117840107,-310.465,0.000208,2]
[373803119,1753117840116,-260.0,0.0002081,2]
[373803122,1753117840126,-4226.93131743,0.000209,4]
[373803125,1753117840135,-901.98,0.0002098,10]
[373803127,1753117840144,-1574.66,0.0002098,10]
[373803129,1753117840153,-1312.22,0.0002098,10]
[373803131,1753117840162,-1093.52,0.0002098,10]
[373803133,1753117840171,-67902.28630686,0.0002099,2]
[373803135,1753117840181,-3000.0,0.00021,2]
[373803137,1753117840190,-3000.0,0.0002101,2]
[373803139,1753117840200,-3000.0,0.0002102,2]
[373803141,1753117840209,-3000.0,0.0002103,2]
[373803143,1753117840218,-500.0,0.00021038,2]
[373803145,1753117840227,-500.0,0.00021038,2]
[373803147,1753117840236,-500.0,0.00021038,2]
[373803149,1753117840246,-500.0,0.00021038,2]
[373803151,1753117840255,-500.0,0.00021038,2]
[373803153,1753117840265,-500.0,0.00021038,2]
[373803155,1753117840274,-500.0,0.00021038,2]
[373803168,1753117840287,-500.0,0.00021038,2]